Workbook

Sheet 封面
A1: 2023年部门预算公开表
D4: 单位编码： | E4: 421004
D5: 单位名称： | E5: 岳阳县新墙水库管理所

Sheet 目录
B1: 部门预算公开表
B3: 一、部门预算报表
B4: 1 | C4: 收支总表
B5: 2 | C5: 收入总表
B6: 3 | C6: 支出总表
B7: 4 | C7: 支出预算分类汇总表（按政府预算经济分类）
B8: 5 | C8: 支出预算分类汇总表（按部门预算经济分类）
B9: 6 | C9: 财政拨款收支总表
B10: 7 | C10: 一般公共预算支出表
B11: 8 | C11: 一般公共预算基本支出表--人员经费(工资福利支出)(按政府预算经济分类)
B12: 9 | C12: 一般公共预算基本支出表--人员经费(工资福利支出)(按部门预算经济分类)
B13: 10 | C13: 一般公共预算基本支出表--人员经费(对个人和家庭的补助)(按政府预算经济分类)
B14: 11 | C14: 一般公共预算基本支出表--人员经费(对个人和家庭的补助)（按部门预算经济分类）
B15: 12 | C15: 一般公共预算基本支出表--公用经费(商品和服务支出)（按政府预算经济分类）
B16: 13 | C16: 一般公共预算基本支出表--公用经费(商品和服务支出)(按部门预算经济分类)
B17: 14 | C17: 一般公共预算“三公”经费支出表
B18: 15 | C18: 政府性基金预算支出表
B19: 16 | C19: 政府性基金预算支出分类汇总表（按政府预算经济分类）
B20: 17 | C20: 政府性基金预算支出分类汇总表（按部门预算经济分类）
B21: 18 | C21: 国有资本经营预算表
B22: 19 | C22: 财政专户管理资金预算支出表
B23: 20 | C23: 专项资金预算汇总表
B24: 21 | C24: 项目支出绩效目标表
B25: 22 | C25: 部门整体支出绩效目标表
B26: 23 | C26: 其他资金绩效目标表
B27: 注：以上部门预算报表中，空表表示本部门无相关收支情况。

Sheet 1收支总表
A2: 收支总表
A3: 单位：岳阳县新墙水库管理所 | G3: 金额单位：万元
A4: 收入 | C4: 支出
A5: 项目 | B5: 预算数 | C5: 项目（按功能分类） | D5: 预算数 | E5: 项目（按部门预算经济分类） | F5: 预算数 | G5: 项目（按政府预算经济分类） | H5: 预算数
A6: 一、一般公共预算拨款收入 | B6: =B7+B8 -> 111.17 | C6: （一）一般公共服务支出 | E6: 一、基本支出 | F6: =F7+F8+F9 -> 89.37 | G6: 一、机关工资福利支出
A7: 经费拨款 | B7: 111.17 | C7: （二）外交支出 | E7: 工资福利支出 | F7: 84.51 | G7: 二、机关商品和服务支出
A8: 纳入一般公共预算管理的非税收入拨款 | B8: =B9+B10+B11+B12+B13+B14+B15+B16+B17+B18+B19 -> 0.00 | C8: （三）国防支出 | E8: 商品和服务支出 | F8: 4.86 | G8: 三、机关资本性支出（一）
A9: 行政事业性收费收入 | C9: （四）公共安全支出 | E9: 对个人和家庭的补助 | G9: 四、机关资本性支出（二）
A10: 专项收入 | C10: （五）教育支出 | E10: 二、项目支出 | F10: =F11+F12+F13+F14+F15+F16+F17+F18+F19+F20 -> 21.80 | G10: 五、对事业单位经常性补助 | H10: 111.17
A11: 国有资本经营收入 | C11: （六）科学技术支出 | E11: 按项目管理的工资福利支出 | G11: 六、对事业单位资本性补助
A12: 国有资源（资产）有偿使用收入 | C12: （七）文化旅游体育与传媒支出 | E12: 按项目管理的商品和服务支出 | G12: 七、对企业补助
A13: 罚没收入 | C13: （八）社会保障和就业支出 | E13: 按项目管理的对个人和家庭的补助 | G13: 八、对企业资本性支出
A14: 捐赠收入 | C14: （九）社会保险基金支出 | E14: 债务利息及费用支出 | G14: 九、对个人和家庭的补助
A15: 政府住房基金收入 | C15: （十）卫生健康支出 | E15: 资本性支出（基本建设） | G15: 十、对社会保障基金补助
A16: 其他纳入一般公共预算管理的非税收入 | C16: （十一）节能环保支出 | E16: 资本性支出 | G16: 十一、债务利息及费用支出
A17: 一般债券 | C17: （十二）城乡社区支出 | E17: 对企业补助（基本建设） | G17: 十二、债务还本支出
A18: 外国政府和国际组织贷款 | C18: （十三）农林水支出 | E18: 对企业补助 | G18: 十三、转移性支出
A19: 外国政府和国际组织捐赠 | C19: （十四）交通运输支出 | E19: 对社会保障基金补助 | G19: 十四、其他支出
A20: 二、政府性基金预算拨款收入 | C20: （十五）资源勘探工业信息等支出 | E20: 其他支出 | F20: 21.80
A21: 三、国有资本经营预算拨款收入 | C21: （十六）商业服务业等支出 | E21: 三、事业单位经营服务支出
A22: 四、社会保障基金预算资金 | C22: （十七）金融支出
A23: 五、财政专户管理资金收入 | C23: （十八）援助其他地区支出
A24: 六、上级财政补助收入 | B24: =B25+B26+B27 -> 0.00 | C24: （十九）自然资源海洋气象等支出
A25: 一般公共预算补助 | C25: （二十）住房保障支出
A26: 政府性基金补助 | C26: （二十一）粮油物资储备支出
A27: 国有资本经营预算补助 | C27: （二十二）国有资本经营预算支出
A28: 七、事业收入 | C28: （二十三）灾害防治及应急管理支出
A29: 八、事业单位经营收入 | C29: （二十四）预备费
A30: 九、上级单位补助收入 | C30: （二十五）其他支出
A31: 十、附属单位上缴收入 | C31: （二十六）转移性支出
A32: 十一、其他收入 | C32: （二十七）债务还本支出
C33: （二十八）债务付息支出
C34: （二十九）债务发行费用支出
C35: （三十）抗疫特别国债安排的支出
A37: 本 年 收 入 合 计 | B37: =B6+B20+B21+B22+B23+B24+B28+B29+B30+B31+B32 -> 111.17 | C37: 本 年 支 出 合 计 | E37: 本 年 支 出 合 计 | F37: =F6+F10+F21 -> 111.17 | G37: 本 年 支 出 合 计 | H37: =H6+H7+H8+H9+H10+H11+H12+H13+H14+H15+H16+H17+H18+H19 -> 111.17
A38: 上年结转结余 | C38: 年终结转结余 | E38: 年终结转结余 | G38: 年终结转结余
A40: 收 入 总 计 | B40: =B37+B38 -> 111.17 | C40: 支 出 总 计 | E40: 支 出 总 计 | F40: =F37+F38 -> 111.17 | G40: 支 出 总 计 | H40: =H37+H38 -> 111.17

Sheet 2收入总表
A2: 收入总表
A3: 单位：岳阳县新墙水库管理所 | X3: 金额单位：万元
A4: 部门（单位）代码 | B4: 部门（单位）名称 | C4: 合计 | D4: 本年收入 | S4: 上年结转结余
D5: 小计 | E5: 一般公共预算 | F5: 政府性基金预算 | G5: 国有资本经营预算 | H5: 社会保险基金预算资金 | I5: 财政专户管理资金 | J5: 上级财政补助收入 | N5: 事业收入 | O5: 事业单位经营收入 | P5: 上级单位补助收入 | Q5: 附属单位上缴收入 | R5: 其他收入 | S5: 小计 | T5: 一般公共预算 | U5: 政府性基金预算 | V5: 国有资本经营预算 | W5: 社会保险基金预算资金 | X5: 财政专户管理资金 | Y5: 单位资金
J6: 一般公共预算补助 | K6: 政府性基金补助 | L6: 国有资本经营预算补助 | M6: 社会保险基金预算资金
A7: 421 | B7: 合计 | C7: =D7 -> 111.17 | D7: =E7+F7+G7+H7+I7 -> 111.17 | E7: =E9 -> 111.17
A8: 421 | B8: 岳阳县水利局 | C8: =D8 -> 111.17 | D8: =E8 -> 111.17 | E8: =E9 -> 111.17
A9: 421004 | B9: 岳阳县新墙水库管理所 | C9: =D9 -> 111.17 | D9: =E9+F9+G9+H9+I9 -> 111.17 | E9: 111.17

Sheet 3支出总表
A2: 支出总表
A3: 单位：岳阳县新墙水库管理所 | K3: 金额单位：万元
A4: 功能科目 | D4: 科目编码 | E4: 科目名称 | F4: 合计 | G4: 基本支出 | H4: 项目支出 | I4: 事业单位经营支出 | J4: 上缴上级支出 | K4: 对附属单位补助支出
A5: 类 | B5: 款 | C5: 项
D6: 合计
D7: 421 | E7: 岳阳县水利局 | F7: =G7+H7 -> 111.17 | G7: =G8 -> 89.37 | H7: =H8 -> 21.80
D8: 421004 | E8: 岳阳县新墙水库管理所 | F8: =G8+H8 -> 111.17 | G8: =SUM(G9:G14) -> 89.37 | H8: =SUM(H9:H14) -> 21.80
A9: 208 | B9: 05 | C9: 05 | D9: 2080505 | E9: 机关事业单位基本养老保险缴费支出 | F9: =G9+H9 -> 7.94 | G9: 7.94
A10: 208 | B10: 05 | C10: 06 | D10: 2080506 | E10: 机关事业单位职业年金缴费支出 | F10: =G10+H10 -> 3.96 | G10: 3.96
A11: 208 | B11: 99 | C11: 99 | D11: 2089999 | E11: 其他社会保障和就业支出 | F11: =G11+H11 -> 1.00 | G11: 1.00
A12: 210 | B12: 11 | C12: 02 | D12: 2101102 | E12: 事业单位医疗 | F12: =G12+H12 -> 4.21 | G12: 4.21
A13: 213 | B13: 03 | C13: 06 | D13: 2130306 | E13: 水利工程运行与维护 | F13: =G13+H13 -> 88.11 | G13: 66.31 | H13: 21.80
A14: 221 | B14: 02 | C14: 01 | D14: 2210201 | E14: 住房公积金 | F14: =G14+H14 -> 5.95 | G14: 5.95

Sheet 4支出分类(政府预算)
A2: 支出预算分类汇总表（按政府预算经济分类）
A3: 单位：岳阳县新墙水库管理所 | S3: 金额单位：万元
A4: 功能科目 | D4: 单位代码 | E4: 单位名称（功能科目） | F4: 总 计 | G4: 机关工资福利支出 | H4: 机关商品和服务支出 | I4: 机关资本性支出(一) | J4: 机关资本性支出(二) | K4: 对事业单位经常性补助 | L4: 对事业单位资本性补助 | M4: 对企业补助 | N4: 对企业资本性支出 | O4: 对个人和家庭的补助 | P4: 对社会保障基金补助 | Q4: 债务利息及费用支出 | R4: 债务还本支出 | S4: 转移性支出 | T4: 其他支出
A5: 类 | B5: 款 | C5: 项
E6: 合计 | F6: =F7 -> 111.17 | K6: =K7 -> 89.37
D7: 421 | E7: 岳阳县水利局 | F7: =F8 -> 111.17 | K7: =K8 -> 89.37
D8: 421004 | E8: 岳阳县新墙水库管理所 | F8: =K8+T8 -> 111.17 | K8: =SUM(K9:K14) -> 89.37 | T8: =T9 -> 21.80
A9: 213 | B9: 03 | C9: 06 | D9: 421004 | E9: 水利工程运行与维护 | F9: =K9+T9 -> 88.11 | K9: ='3支出总表'!G13 -> 66.31 | T9: 21.80
A10: 208 | B10: 05 | C10: 05 | D10: 421004 | E10: 机关事业单位基本养老保险缴费支出 | F10: =K10+T10 -> 7.94 | K10: 7.94
A11: 208 | B11: 05 | C11: 06 | D11: 421004 | E11: 机关事业单位职业年金缴费支出 | F11: =K11+T11 -> 3.96 | K11: 3.96
A12: 208 | B12: 99 | C12: 99 | D12: 421004 | E12: 其他社会保障和就业支出 | F12: =K12+T12 -> 1.00 | K12: 1.00
A13: 210 | B13: 11 | C13: 02 | D13: 421004 | E13: 事业单位医疗 | F13: =K13+T13 -> 4.21 | K13: 4.21
A14: 221 | B14: 02 | C14: 01 | D14: 421004 | E14: 住房公积金 | F14: =K14+T14 -> 5.95 | K14: 5.95

Sheet 5支出分类（部门预算）
A2: 支出预算分类汇总表（按部门预算经济分类）
A3: 单位：岳阳县新墙水库管理所 | T3: 金额单位：万元
A4: 功能科目 | D4: 单位代码 | E4: 单位名称（功能科目） | F4: 总 计 | G4: 基本支出 | K4: 项目支出
A5: 类 | B5: 款 | C5: 项 | G5: 合计 | H5: 工资福利支出 | I5: 一般商品和服务支出 | J5: 对个人和家庭的补助 | K5: 合计 | L5: 按项目管理的工资福利支出 | M5: 按项目管理的商品和服务支出 | N5: 按项目管理的对个人和家庭的补助 | O5: 债务利息及费用支出 | P5: 资本性支出（基本建设） | Q5: 资本性支出 | R5: 对企业补助（基本建设） | S5: 对企业补助 | T5: 对社会保障基金补助 | U5: 其他支出
E6: 合计 | F6: =F7 -> 111.17 | G6: =G7 -> 89.37 | H6: =H7 -> 84.51 | I6: =I7 -> 4.86
D7: 421 | E7: 岳阳县水利局 | F7: =F8 -> 111.17 | G7: =G8 -> 89.37 | H7: =H8 -> 84.51 | I7: =I8 -> 4.86
D8: 421004 | E8: 岳阳县新墙水库管理所 | F8: =G8+K8 -> 111.17 | G8: =SUM(G9:G14) -> 89.37 | H8: =SUM(H9:H14) -> 84.51 | I8: =SUM(I9:I14) -> 4.86 | K8: =U8 -> 21.80 | U8: 21.80
A9: 213 | B9: 03 | C9: 06 | D9: 421004 | E9: 水利工程运行与维护 | F9: =G9+K9 -> 88.11 | G9: =H9+I9 -> 66.31 | H9: 61.45 | I9: 4.86 | K9: =U9 -> 21.80 | U9: 21.80
A10: 208 | B10: 05 | C10: 05 | D10: 421004 | E10: 机关事业单位基本养老保险缴费支出 | F10: =G10+K10 -> 7.94 | G10: =H10+I10 -> 7.94 | H10: 7.94
A11: 208 | B11: 05 | C11: 06 | D11: 421004 | E11: 机关事业单位职业年金缴费支出 | F11: =G11+K11 -> 3.96 | G11: =H11+I11 -> 3.96 | H11: 3.96
A12: 208 | B12: 99 | C12: 99 | D12: 421004 | E12: 其他社会保障和就业支出 | F12: =G12+K12 -> 1.00 | G12: =H12+I12 -> 1.00 | H12: 1.00
A13: 210 | B13: 11 | C13: 02 | D13: 421004 | E13: 事业单位医疗 | F13: =G13+K13 -> 4.21 | G13: =H13+I13 -> 4.21 | H13: 4.21
A14: 221 | B14: 02 | C14: 01 | D14: 421004 | E14: 住房公积金 | F14: =G14+K14 -> 5.95 | G14: =H14+I14 -> 5.95 | H14: 5.95

Sheet 6财政拨款收支总表
A2: 财政拨款收支总表
A3: 单位：岳阳县新墙水库管理所 | D3: 金额单位：万元
A4: 收入 | C4: 支出
A5: 项目 | B5: 预算数 | C5: 项目 | D5: 预算数
A6: 一、本年收入 | B6: =B7+B10+B11+B12 -> 111.17 | C6: 一、本年支出 | D6: =D7+D8+D9+D10+D11+D12+D13+D14+D15+D16+D17+D18+D19+D20+D21+D22+D23+D24+D25+D26+D27+D28+D29+D30+D31+D32+D33+D34+D35+D36 -> 111.17
A7: （一）一般公共预算拨款 | B7: =B8+B9 -> 111.17 | C7: （一）一般公共服务支出
A8: 经费拨款 | B8: 111.17 | C8: （二）外交支出
A9: 纳入一般公共预算管理的非税收入拨款 | C9: （三）国防支出
A10: （二）政府性基金预算拨款 | C10: （四）公共安全支出
A11: （三）国有资本经营预算拨款 | C11: （五）教育支出
A12: （四）社会保险基金预算资金 | C12: （六）科学技术支出
A13: 二、上年结转 | B13: =B14+B15+B16+B17 -> 0.00 | C13: （七）文化旅游体育与传媒支出
A14: （一）一般公共预算拨款 | C14: （八）社会保障和就业支出 | D14: 12.90
A15: （二）政府性基金预算拨款 | C15: （九）社会保险基金支出
A16: （三）国有资本经营预算拨款 | C16: （十）卫生健康支出 | D16: 4.21
A17: （四）社会保险基金预算资金 | C17: （十一）节能环保支出
C18: （十二）城乡社区支出
C19: （十三）农林水支出 | D19: ='5支出分类（部门预算）'!F9 -> 88.11
C20: （十四）交通运输支出
C21: （十五）资源勘探工业信息等支出
C22: （十六）商业服务业等支出
C23: （十七）金融支出
C24: （十八）援助其他地区支出
C25: （十九）自然资源海洋气象等支出
C26: （二十）住房保障支出 | D26: 5.95
C27: （二十一）粮油物资储备支出
C28: （二十二）国有资本经营预算支出
C29: （二十三）灾害防治及应急管理支出
C30: （二十四）预备费
C31: （二十五）其他支出
C32: （二十六）转移性支出
C33: （二十七）债务还本支出
C34: （二十八）债务付息支出
C35: （二十九）债务发行费用支出
C36: （三十）抗疫特别国债安排的支出
C38: 二、年终结转结余
A40: 收 入 总 计 | B40: =B6+B13 -> 111.17 | C40: 支 出 总 计 | D40: =D6+D38 -> 111.17

Sheet 7一般公共预算支出表
A2: 一般公共预算支出表
A3: 单位：岳阳县新墙水库管理所 | K3: 金额单位：万元
A4: 功能科目 | D4: 科目编码 | E4: 科目名称 | F4: 合计 | G4: 基本支出 | L4: 项目支出
G5: 小计 | H5: 人员经费 | K5: 公用经费
A6: 类 | B6: 款 | C6: 项 | H6: 工资福利支出 | I6: 商品和服务支出 | J6: 对个人和家庭的补助
E7: 合计 | F7: =F8 -> 111.17 | G7: =H7+I7+J7+K7 -> 89.37 | H7: =H8 -> 84.51 | K7: =K8 -> 4.86 | L7: =L8 -> 21.80
D8: 421 | E8: 岳阳县水利局 | F8: =F9 -> 111.17 | G8: =H8+I8+J8+K8 -> 89.37 | H8: =H9 -> 84.51 | K8: =K9 -> 4.86 | L8: =L9 -> 21.80
D9: 421004 | E9: 岳阳县新墙水库管理所 | F9: =SUM(F10:F15) -> 111.17 | G9: =SUM(G10:G15) -> 89.37 | H9: =SUM(H10:H15) -> 84.51 | K9: =K14 -> 4.86 | L9: =L14 -> 21.80
A10: 208 | B10: 05 | C10: 05 | D10: 2080505 | E10: 机关事业单位基本养老保险缴费支出 | F10: =G10+L10 -> 7.94 | G10: =H10+I10+J10+K10 -> 7.94 | H10: ='8工资福利(政府预算)'!M9 -> 7.94
A11: 208 | B11: 05 | C11: 06 | D11: 2080506 | E11: 机关事业单位职业年金缴费支出 | F11: =G11+L11 -> 3.96 | G11: =H11+I11+J11+K11 -> 3.96 | H11: 3.96
A12: 208 | B12: 99 | C12: 99 | D12: 2089999 | E12: 其他社会保障和就业支出 | F12: =G12+L12 -> 1.00 | G12: =H12+I12+J12+K12 -> 1.00 | H12: ='8工资福利(政府预算)'!M11 -> 1.00
A13: 210 | B13: 11 | C13: 02 | D13: 2101102 | E13: 事业单位医疗 | F13: =G13+L13 -> 4.21 | G13: =H13+I13+J13+K13 -> 4.21 | H13: 4.21
A14: 213 | B14: 03 | C14: 06 | D14: 2130306 | E14: 水利工程运行与维护 | F14: =G14+L14 -> 88.11 | G14: =H14+I14+J14+K14 -> 66.31 | H14: ='5支出分类（部门预算）'!H9 -> 61.45 | K14: 4.86 | L14: 21.80
A15: 221 | B15: 02 | C15: 01 | D15: 2210201 | E15: 住房公积金 | F15: =G15+L15 -> 5.95 | G15: =H15+I15+J15+K15 -> 5.95 | H15: 5.95

Sheet 8工资福利(政府预算)
A2: 一般公共预算基本支出表--人员经费(工资福利支出)(按政府预算经济分类)
A3: 单位：岳阳县新墙水库管理所 | M3: 金额单位：万元
A4: 功能科目 | D4: 单位代码 | E4: 单位名称（功能科目） | F4: 总 计 | G4: 机关工资福利支出 | L4: 对事业单位经常性补助
A5: 类 | B5: 款 | C5: 项 | G5: 合计 | H5: 工资奖金津补贴 | I5: 社会保障缴费 | J5: 住房公积金 | K5: 其他工资福利支出 | L5: 合计 | M5: 工资福利支出 | N5: 其他对事业单位补助
E6: 合计 | F6: =L6+G6 -> 84.51 | L6: =M6 -> 84.51 | M6: =M7 -> 84.51
D7: 421 | E7: 岳阳县水利局 | F7: =G7+L7 -> 84.51 | L7: =M7 -> 84.51 | M7: =M8 -> 84.51
D8: 421004 | E8: 岳阳县新墙水库管理所 | F8: =G8+L8 -> 84.51 | L8: =M8 -> 84.51 | M8: =SUM(M9:M14) -> 84.51
A9: 208 | B9: 05 | C9: 05 | D9: 421004 | E9: 机关事业单位基本养老保险缴费支出 | F9: =G9+L9 -> 7.94 | L9: =M9 -> 7.94 | M9: 7.94
A10: 208 | B10: 05 | C10: 06 | D10: 421004 | E10: 机关事业单位职业年金缴费支出 | F10: =G10+L10 -> 3.96 | L10: =M10 -> 3.96 | M10: 3.96
A11: 208 | B11: 99 | C11: 99 | D11: 421004 | E11: 其他社会保障和就业支出 | F11: =G11+L11 -> 1.00 | L11: =M11 -> 1.00 | M11: 1.00
A12: 210 | B12: 11 | C12: 02 | D12: 421004 | E12: 事业单位医疗 | F12: =G12+L12 -> 4.21 | L12: =M12 -> 4.21 | M12: 4.21
A13: 213 | B13: 03 | C13: 06 | D13: 421004 | E13: 水利工程运行与维护 | F13: =G13+L13 -> 61.45 | L13: =M13 -> 61.45 | M13: 61.45
A14: 221 | B14: 02 | C14: 01 | D14: 421004 | E14: 住房公积金 | F14: =G14+L14 -> 5.95 | L14: =M14 -> 5.95 | M14: 5.95

Sheet 9工资福利
A2: 一般公共预算基本支出表--人员经费(工资福利支出)(按部门预算经济分类)
A3: 单位：岳阳县新墙水库管理所 | U3: 金额单位：万元
A4: 功能科目 | D4: 单位代码 | E4: 单位名称（功能科目） | F4: 总 计 | G4: 工资津补贴 | L4: 社会保障缴费 | R4: 住房公积金 | S4: 其他工资福利支出
A5: 类 | B5: 款 | C5: 项 | G5: 合计 | H5: 基本工资 | I5: 津贴补贴 | J5: 奖金 | K5: 绩效工资 | L5: 合计 | M5: 机关事业单位基本养老保险缴费 | N5: 职业年金缴费 | O5: 职工基本医疗保险缴费 | P5: 公务员医疗补助缴费 | Q5: 其他社会保障缴费 | S5: 合计 | T5: 伙食补助费 | U5: 医疗费 | V5: 其他工资福利支出
E6: 合计 | F6: =F7 -> 84.51 | G6: =G7 -> 61.45 | H6: =H7 -> 31.78 | I6: =I7 -> 11.88 | J6: =J7 -> 0.00 | K6: =K7 -> 17.79 | L6: =L7 -> 17.11 | M6: =M7 -> 7.94 | N6: =N7 -> 3.96 | O6: =O7 -> 4.21 | P6: =P7 -> 0.00 | Q6: =Q7 -> 1.00 | R6: =R7 -> 5.95
D7: 421 | E7: 岳阳县水利局 | F7: =F8 -> 84.51 | G7: =G8 -> 61.45 | H7: =H8 -> 31.78 | I7: =I8 -> 11.88 | J7: =J8 -> 0.00 | K7: =K8 -> 17.79 | L7: =L8 -> 17.11 | M7: =M8 -> 7.94 | N7: =N8 -> 3.96 | O7: =O8 -> 4.21 | P7: =P8 -> 0.00 | Q7: =Q8 -> 1.00 | R7: =R8 -> 5.95
D8: 421004 | E8: 岳阳县新墙水库管理所 | F8: =G8+L8+R8+S8 -> 84.51 | G8: =H8+I8+J8+K8 -> 61.45 | H8: 31.78 | I8: =9.23+2.65 -> 11.88 | K8: 17.79 | L8: =M8+N8+O8+P8+Q8 -> 17.11 | M8: ='8工资福利(政府预算)'!M9 -> 7.94 | N8: ='8工资福利(政府预算)'!F10 -> 3.96 | O8: ='8工资福利(政府预算)'!F12 -> 4.21 | Q8: ='8工资福利(政府预算)'!F11 -> 1.00 | R8: ='8工资福利(政府预算)'!F14 -> 5.95
A9: 208 | B9: 05 | C9: 05 | D9: 421004 | E9: 机关事业单位基本养老保险缴费支出 | F9: =G9+L9+R9+S9 -> 7.94 | G9: =H9+I9+J9+K9 -> 0.00 | L9: =M9+N9+O9+P9+Q9 -> 7.94 | M9: 7.94
A10: 208 | B10: 05 | C10: 06 | D10: 421004 | E10: 机关事业单位职业年金缴费支出 | F10: =G10+L10+R10+S10 -> 3.96 | G10: =H10+I10+J10+K10 -> 0.00 | L10: =M10+N10+O10+P10+Q10 -> 3.96 | N10: 3.96
A11: 208 | B11: 99 | C11: 99 | D11: 421004 | E11: 其他社会保障和就业支出 | F11: =G11+L11+R11+S11 -> 1.00 | G11: =H11+I11+J11+K11 -> 0.00 | L11: =M11+N11+O11+P11+Q11 -> 1.00 | Q11: 1.00
A12: 210 | B12: 11 | C12: 02 | D12: 421004 | E12: 事业单位医疗 | F12: =G12+L12+R12+S12 -> 4.21 | G12: =H12+I12+J12+K12 -> 0.00 | L12: =M12+N12+O12+P12+Q12 -> 4.21 | O12: 4.21
A13: 213 | B13: 03 | C13: 06 | D13: 421004 | E13: 水利工程运行与维护 | F13: =G13+L13+R13+S13 -> 61.45 | G13: =H13+I13+J13+K13 -> 61.45 | H13: 31.78 | I13: 11.88 | K13: 17.79 | L13: =M13+N13+O13+P13+Q13 -> 0.00
A14: 221 | B14: 02 | C14: 01 | D14: 421004 | E14: 住房公积金 | F14: =G14+L14+R14+S14 -> 5.95 | G14: =H14+I14+J14+K14 -> 0.00 | L14: =M14+N14+O14+P14+Q14 -> 0.00 | R14: 5.95

Sheet 10个人家庭(政府预算)
A2: 一般公共预算基本支出表--人员经费(对个人和家庭的补助)(按政府预算经济分类)
A3: 单位：岳阳县新墙水库管理所 | J3: 金额单位：万元
A4: 功能科目 | D4: 单位代码 | E4: 单位名称（功能科目） | F4: 总计 | G4: 社会福利和救济 | H4: 助学金 | I4: 个人农业生产补贴 | J4: 离退休费 | K4: 其他对个人和家庭的补助
A5: 类 | B5: 款 | C5: 项
E6: 合计

Sheet 11个人家庭
A2: 一般公共预算基本支出表--人员经费(对个人和家庭的补助)（按部门预算经济分类）
A3: 单位：岳阳县新墙水库管理所 | Q3: 金额单位：万元
A4: 功能科目 | D4: 单位代码 | E4: 单位名称（功能科目） | F4: 总计 | G4: 离休费 | H4: 退休费 | I4: 退职（役）费 | J4: 抚恤金 | K4: 生活补助 | L4: 救济费 | M4: 医疗费补助 | N4: 助学金 | O4: 奖励金 | P4: 代缴社会保险费 | Q4: 个人农业生产补贴 | R4: 其他对个人和家庭的补助
A5: 类 | B5: 款 | C5: 项
E6: 合计

Sheet 12商品服务(政府预算)
A2: 一般公共预算基本支出表--公用经费(商品和服务支出)（按政府预算经济分类）
A3: 单位：岳阳县新墙水库管理所 | S3: 金额单位：万元
A4: 功能科目 | D4: 单位代码 | E4: 单位名称（功能科目） | F4: 总计 | G4: 机关商品和服务支出 | R4: 对事业单位经常性补助
A5: 类 | B5: 款 | C5: 项 | G5: 合计 | H5: 办公经费 | I5: 会议费 | J5: 培训费 | K5: 专用材料购置费 | L5: 委托业务费 | M5: 公务接待费 | N5: 因公出国（境）费用 | O5: 公务用车运行维护费 | P5: 维修(护)费 | Q5: 其他商品和服务支出 | R5: 合计 | S5: 商品和服务支出 | T5: 其他对事业单位补助
E6: 合计 | F6: =+G6+R6 -> 4.86 | R6: =S6 -> 4.86 | S6: =S7 -> 4.86
D7: 421 | E7: 岳阳县水利局 | F7: =G7+R7 -> 4.86 | R7: =S7+T7 -> 4.86 | S7: =S8 -> 4.86
D8: 421004 | E8: 岳阳县新墙水库管理所 | F8: =G8+R8 -> 4.86 | R8: =S8+T8 -> 4.86 | S8: =S9 -> 4.86
A9: 213 | B9: 03 | C9: 06 | D9: 421004 | E9: 水利工程运行与维护 | F9: =G9+R9 -> 4.86 | R9: =S9+T9 -> 4.86 | S9: 4.86

Sheet 13商品服务
A2: 一般公共预算基本支出表--公用经费(商品和服务支出)(按部门预算经济分类)
A3: 单位：岳阳县新墙水库管理所 | AF3: 金额单位：万元
A4: 功能科目 | D4: 单位代码 | E4: 单位名称（功能科目） | F4: 总 计 | G4: 办公费 | H4: 印刷费 | I4: 咨询费 | J4: 手续费 | K4: 水费 | L4: 电费 | M4: 邮电费 | N4: 取暖费 | O4: 物业管理费 | P4: 差旅费 | Q4: 因公出国（境）费用 | R4: 维修(护)费 | S4: 租赁费 | T4: 会议费 | U4: 培训费 | V4: 公务接待费 | W4: 专用材料费 | X4: 被装购置费 | Y4: 专用燃料费 | Z4: 劳务费 | AA4: 委托业务费 | AB4: 工会经费 | AC4: 福利费 | AD4: 公务用车运行维护费 | AE4: 其他交通费用 | AF4: 税金及附加费用 | AG4: 其他商品和服务支出
A5: 类 | B5: 款 | C5: 项
E6: 合计 | F6: =F7 -> 4.86 | G6: =G7 -> 0.73 | H6: =H7 -> 0.16 | I6: =I7 -> 0.00 | J6: =J7 -> 0.00 | K6: =K7 -> 0.12 | L6: =L7 -> 0.49 | M6: =M7 -> 0.81 | N6: =N7 -> 0.00 | O6: =O7 -> 0.57 | P6: =P7 -> 0.97 | Q6: =Q7 -> 0.00 | R6: =R7 -> 0.16 | S6: =S7 -> 0.00 | T6: =T7 -> 0.00 | U6: =U7 -> 0.29 | V6: =V7 -> 0.40 | W6: =W7 -> 0.00 | X6: =X7 -> 0.00 | Y6: =Y7 -> 0.00 | Z6: =Z7 -> 0.00 | AA6: =AA7 -> 0.00 | AB6: =AB7 -> 0.00 | AC6: =AC7 -> 0.00 | AD6: =AD7 -> 0.00 | AE6: =AE7 -> 0.00 | AF6: =AF7 -> 0.00 | AG6: =AG7 -> 0.16
D7: 421 | E7: 岳阳县水利局 | F7: =F8 -> 4.86 | G7: =G8 -> 0.73 | H7: =H8 -> 0.16 | I7: =I8 -> 0.00 | J7: =J8 -> 0.00 | K7: =K8 -> 0.12 | L7: =L8 -> 0.49 | M7: =M8 -> 0.81 | N7: =N8 -> 0.00 | O7: =O8 -> 0.57 | P7: =P8 -> 0.97 | Q7: =Q8 -> 0.00 | R7: =R8 -> 0.16 | S7: =S8 -> 0.00 | T7: =T8 -> 0.00 | U7: =U8 -> 0.29 | V7: =V8 -> 0.40 | W7: =W8 -> 0.00 | X7: =X8 -> 0.00 | Y7: =Y8 -> 0.00 | Z7: =Z8 -> 0.00 | AA7: =AA8 -> 0.00 | AB7: =AB8 -> 0.00 | AC7: =AC8 -> 0.00 | AD7: =AD8 -> 0.00 | AE7: =AE8 -> 0.00 | AF7: =AF8 -> 0.00 | AG7: =AG8 -> 0.16
D8: 421004 | E8: 岳阳县新墙水库管理所 | F8: =F9 -> 4.86 | G8: =G9 -> 0.73 | H8: =H9 -> 0.16 | I8: =I9 -> 0.00 | J8: =J9 -> 0.00 | K8: =K9 -> 0.12 | L8: =L9 -> 0.49 | M8: =M9 -> 0.81 | N8: =N9 -> 0.00 | O8: =O9 -> 0.57 | P8: =P9 -> 0.97 | Q8: =Q9 -> 0.00 | R8: =R9 -> 0.16 | S8: =S9 -> 0.00 | T8: =T9 -> 0.00 | U8: =U9 -> 0.29 | V8: =V9 -> 0.40 | W8: =W9 -> 0.00 | X8: =X9 -> 0.00 | Y8: =Y9 -> 0.00 | Z8: =Z9 -> 0.00 | AA8: =AA9 -> 0.00 | AB8: =AB9 -> 0.00 | AC8: =AC9 -> 0.00 | AD8: =AD9 -> 0.00 | AE8: =AE9 -> 0.00 | AF8: =AF9 -> 0.00 | AG8: =AG9 -> 0.16
A9: 213 | B9: 03 | C9: 06 | D9: 421003 | E9: 水利工程运行与维护 | F9: =SUM(G9:AG9) -> 4.86 | G9: 0.73 | H9: 0.16 | K9: 0.12 | L9: 0.49 | M9: 0.81 | O9: 0.57 | P9: 0.97 | R9: 0.16 | U9: 0.29 | V9: 0.40 | AG9: 0.16

Sheet 14三公
A2: 一般公共预算“三公”经费支出表
A3: 单位：岳阳县新墙水库管理所 | G3: 金额单位：万元
A4: 单位编码 | B4: 单位名称 | C4: “三公”经费合计 | D4: 因公出国（境）费 | E4: 公务用车购置及运行费 | H4: 公务接待费
E5: 小计 | F5: 公务用车购置费 | G5: 公务用车运行费
B6: 合计 | C6: =E6 -> 0.40 | E6: =H6 -> 0.40 | H6: =H7 -> 0.40
A7: 421 | B7: 岳阳县水利局 | C7: =E7 -> 0.40 | E7: =H7 -> 0.40 | H7: =H8 -> 0.40
A8: 421004 | B8: 岳阳县新墙水库管理所 | C8: =E8 -> 0.40 | E8: =H8 -> 0.40 | H8: ='13商品服务'!V8 -> 0.40

Sheet 15政府性基金
A2: 政府性基金预算支出表
A3: 单位：XXX | G3: 金额单位：万元
A4: 科目编码 | B4: 科目名称 | C4: 合计 | D4: 本年政府性基金预算支出 | H4: 项目支出
D5: 小计 | E5: 人员经费 | G5: 公用经费
E6: 工资福利支出 | F6: 对个人和家庭的补助
B7: 合计

Sheet 16政府性基金(政府预算)
A2: 政府性基金预算支出分类汇总表（按政府预算经济分类）
A3: 单位：XXX | S3: 金额单位：万元
A4: 功能科目 | D4: 单位代码 | E4: 单位名称（功能科目） | F4: 总 计 | G4: 机关工资福利支出 | H4: 机关商品和服务支出 | I4: 机关资本性支出(一) | J4: 机关资本性支出(二) | K4: 对事业单位经常性补助 | L4: 对事业单位资本性补助 | M4: 对企业补助 | N4: 对企业资本性支出 | O4: 对个人和家庭的补助 | P4: 对社会保障基金补助 | Q4: 债务利息及费用支出 | R4: 债务还本支出 | S4: 转移性支出 | T4: 其他支出
A5: 类 | B5: 款 | C5: 项
E6: 合计

Sheet 17政府性基金（部门预算）
A2: 政府性基金预算支出分类汇总表（按部门预算经济分类）
A3: 单位：XXX | P3: 金额单位：万元
A4: 功能科目 | D4: 单位代码 | E4: 单位名称（功能科目） | F4: 总 计 | G4: 基本支出 | K4: 项目支出
A5: 类 | B5: 款 | C5: 项 | G5: 合计 | H5: 工资福利支出 | I5: 一般商品和服务支出 | J5: 对个人和家庭的补助 | K5: 合计 | L5: 按项目管理的商品和服务支出 | M5: 按项目管理的对个人和家庭的补助 | N5: 债务利息及费用支出 | O5: 资本性支出（基本建设） | P5: 资本性支出 | Q5: 对企业补助（基本建设） | R5: 对企业补助 | S5: 对社会保障基金补助 | T5: 其他支出
E6: 合计

Sheet 18国有资本经营预算
A2: 国有资本经营预算支出表
A3: 单位：XXX | H3: 金额单位：万元
A4: 科目编码 | B4: 科目名称 | C4: 合计 | D4: 本年国有资本经营预算支出 | H4: 项目支出
D5: 小计 | E5: 人员经费 | G5: 公用经费
E6: 工资福利支出 | F6: 对个人和家庭的补助
B7: 合计

Sheet 19财政专户管理资金
A2: 财政专户管理资金预算支出表
A3: 单位：XXX | H3: 金额单位：万元
A4: 科目编码 | B4: 科目名称 | C4: 合计 | D4: 本年财政专户管理资金预算支出 | H4: 项目支出
D5: 小计 | E5: 人员经费 | G5: 公用经费
E6: 工资福利支出 | F6: 对个人和家庭的补助
B7: 合计

Sheet 20专项清单
A2: 专项资金预算汇总表
A3: 单位：XXX | N3: 金额单位：万元
A4: 单位代码 | C4: 单位名称（专项名称） | D4: 预算额度 | N4: 预算编制方式
D5: 总计 | E5: 一般公共预算 | K5: 政府性基金 | L5: 国有资本经营预算 | M5: 社会保险基金预算资金 | N5: 编入部门预算金额 | O5: 财政代编金额
E6: 一般公共预算小计 | F6: 经费拨款 | G6: 纳入一般公共预算管理的非税收入 | H6: 一般债券 | I6: 外国政府和国际组织贷款 | J6: 外国政府和国际组织赠款
C7: 合计

Sheet 21项目支出绩效目标表
C2: 项目支出绩效目标表
A3: 单位：XXX | L3: 金额单位：万元
A4: 单位代码 | B4: 单位（专项）名称 | C4: 资金总额 | D4: 实施期绩效目标 | E4: 绩效指标
E5: 一级指标 | F5: 二级指标 | G5: 三级指标 | H5: 指标值 | I5: 指标值内容 | J5: 评（扣分标准） | K5: 度量单位 | L5: 指标值类型 | M5: 备注

Sheet 22整体支出绩效目标表
A1: 整体支出绩效目标表
A2: 单位：XXX | Q2: 金额单位：万元
A3: 单位编码 | B3: 单位名称 | C3: 年度预算申请 | J3: 整体绩效目标 | K3: 部门整体支出年度绩效目标
C4: 资金总额 | D4: 按收入性质分 | H4: 按支出性质分
D5: 一般公共预算 | E5: 政府性基金拨款 | F5: 财政专户管理资金 | G5: 其他资金 | H5: 基本支出 | I5: 项目支出 | K5: 一级指标 | L5: 二级指标 | M5: 三级指标 | N5: 指标值类型 | O5: 指标值 | P5: 度量单位 | Q5: 指标值说明 | R5: 备注
A6: 421004 | B6: 岳阳县新墙水库管理所 | D6: 111.17 | H6: 89.37 | I6: 21.80

Sheet 23其他资金绩效目标表
A1: 其他资金绩效目标表
A2: 单位：XXX | P2: 单位：万元
A3: 单位代码 | B3: 单位（专项）名称 | C3: 资金总额 | D3: 资金投向 | F3: 实施期绩效目标 | G3: 年度绩效目标 | H3: 绩效指标
D4: 省级支出 | E4: 对市县专项转移支付 | H4: 产出指标 | L4: 效益指标
H5: 数量指标 | I5: 质量指标 | J5: 时效指标 | K5: 成本指标 | L5: 经济效益指标 | M5: 社会效益指标 | N5: 生态效益指标 | O5: 可持续影响指标 | P5: 社会公益或服务对象满意度指标
